fUSD/lending_fUSD_20240210
["ID","MTS","AMOUNT","RATE_DAILY","PERIOD"]
[313675787,1707574245623,-706.48,0.00022813,2]
[313675788,1707574245632,-500.0,0.00022813,2]
[313675789,1707574245641,-500.0,0.00022813,2]
[313675790,1707574245651,-1111.1,0.00022813,2]
[313675791,1707574245660,-500.0,0.00022813,2]
[313675792,1707574245670,-4192.44,0.00022813,2]
[313675793,1707574245688,-500.0,0.00022813,2]
[313675794,1707574245700,-201.07179004,0.00022813,2]
[313675795,1707574245709,-1461.55,0.00022813,2]
[313675796,1707574245719,-1156.45,0.00022813,2]
[313675797,1707574245729,-500.0,0.00022813,2]
[313675798,1707574245739,-500.0,0.00022813,2]
[313675799,1707574245749,-500.0,0.00022813,2]
[313675800,1707574245758,-526.96,0.00022813,2]
[313675801,1707574245771,-4621.17,0.00022813,2]
[313675802,1707574245782,-556.98,0.00022813,2]
[313675803,1707574245791,-500.0,0.00022813,2]
[313675804,1707574245801,-8652.9,0.00022813,2]
[313675805,1707574245811,-500.0,0.00022813,2]
[313675806,1707574245820,-500.0,0.00022813,2]
[313675807,1707574245830,-500.0,0.00022813,2]
[313675808,1707574245839,-500.0,0.00022813,2]
[313675809,1707574245849,-500.0,0.00022813,2]
[313675810,1707574245861,-1507.4,0.00022813,2]
[313675811,1707574245871,-1344.82,0.00022813,2]
[313675812,1707574245881,-500.0,0.00022813,2]
[313675813,1707574245891,-500.0,0.00022813,2]
[313675814,1707574245900,-2326.79,0.00022813,2]
[313675815,1707574245910,-500.0,0.00022813,2]
[313675816,1707574245919,-500.0,0.00022813,2]
[313675817,1707574245929,-1393.4,0.00022813,2]
[313675818,1707574245939,-1818.92,0.00022813,2]
[313675819,1707574245950,-674.57,0.00022813,2]
[313675820,1707574245961,-2027.14,0.00022813,2]
[313675821,1707574245971,-500.0,0.00022813,2]
[313675822,1707574245980,-930.03,0.00022813,5]
[313675823,1707574245990,-2829.1,0.00022813,2]
[313675824,1707574246000,-1455.5,0.00022813,2]
[313675826,1707574246010,-500.0,0.00022813,2]
[313675827,1707574246020,-500.0,0.00022813,2]
[313675828,1707574246030,-500.0,0.00022813,2]
[313675829,1707574246040,-500.0,0.00022813,2]
[313675830,1707574246050,-1720.68,0.00022813,2]
[313675831,1707574246059,-555.72,0.00022813,2]
[313675832,1707574246069,-500.0,0.00022813,2]
[313675833,1707574246079,-3972.0,0.00022813,2]
[313675834,1707574246088,-608.91,0.00022813,2]
[313675835,1707574246098,-259.97,0.00022813,2]
[313675836,1707574246108,-2184.99,0.00022813,2]
[313675837,1707574246117,-990.0,0.00022813,7]
[313675838,1707574246127,-745.056728,0.00022813,7]
[313675839,1707574246137,-500.0,0.00022813,2]
[313675840,1707574246147,-1966.35,0.00022813,2]
[313675841,1707574246157,-1817.93,0.00022813,2]
[313675842,1707574246167,-835.04,0.00022813,2]
[313675843,1707574246177,-587.81,0.00022813,2]
[313675844,1707574246187,-3333.4,0.00022813,2]
[313675845,1707574246196,-1178.56391139,0.00022814,2]
[313675846,1707574246206,-500.0,0.00022814,2]
[313675847,1707574246216,-500.0,0.00022814,2]
[313675848,1707574246225,-227.64077025,0.00022814,2]
[313675849,1707574246235,-500.0,0.00022814,2]
[313675850,1707574246245,-176.77,0.00022814,2]
[313675851,1707574246254,-500.0,0.00022814,2]
[313675852,1707574246264,-500.0,0.00022814,2]
[313675853,1707574246274,-500.0,0.00022814,2]
[313675854,1707574246283,-500.0,0.00022814,2]
[313675855,1707574246293,-500.0,0.00022814,2]
[313675856,1707574246302,-500.0,0.00022814,2]
[313675857,1707574246317,-500.0,0.00022814,2]
[313675858,1707574246334,-613.71,0.00022814,2]
[313675859,1707574246344,-500.0,0.00022814,2]
[313675860,1707574246354,-407.44470297,0.00022814,2]
[313675861,1707574246363,-500.0,0.00022814,2]
[313675862,1707574246374,-500.0,0.00022814,2]
[313675863,1707574246384,-500.0,0.00022814,2]
[313675871,1707574246393,-740.88,0.00022814,2]
[313675876,1707574246664,-500.0,0.00022814,2]
[313675878,1707574246675,-489.02,0.00022814,2]
[313675879,1707574246686,-500.0,0.00022814,2]
[313675880,1707574246695,-379.05,0.00022814,2]
[313675881,1707574246705,-500.0,0.00022814,2]
[313675882,1707574246714,-500.0,0.00022814,2]
[313675883,1707574246724,-500.0,0.00022814,2]
[313675884,1707574246734,-500.0,0.00022814,2]
[313675885,1707574246744,-500.0,0.00022814,2]
[313675886,1707574246754,-500.0,0.00022814,2]
[313675887,1707574246764,-500.0,0.00022814,2]
[313675888,1707574246774,-500.0,0.00022814,2]
[313675889,1707574246785,-500.0,0.00022814,2]
[313675890,1707574246794,-500.0,0.00022814,2]
[313675891,1707574246804,-500.0,0.00022814,2]
[313675892,1707574246814,-302.95842595,0.00022814,2]
[313675893,1707574246823,-151.69,0.00022814,2]
[313675894,1707574246833,-500.0,0.00022814,7]
[313675895,1707574246842,-354.97,0.00022814,2]
[313675896,1707574246852,-500.0,0.00022814,2]
[313675898,1707574246866,-379.36067088,0.00022814,2]
[313675899,1707574246876,-500.0,0.00022814,2]
[313675901,1707574246885,-500.0,0.00022814,2]
[313675903,1707574246895,-566.18,0.00022814,2]
[313675905,1707574246906,-500.0,0.00022814,2]
[313675907,1707574246915,-500.0,0.00022814,2]
[313675910,1707574246926,-500.0,0.00022814,2]
[313675912,1707574246937,-1569.64,0.00022814,2]
[313675915,1707574246948,-500.0,0.00022814,2]
[313675917,1707574246958,-500.0,0.00022814,2]
[313675919,1707574246968,-500.0,0.00022814,2]
[313675920,1707574246979,-500.0,0.00022814,2]
[313675921,1707574246989,-510.49236514,0.00022814,2]
[313675922,1707574246999,-500.0,0.00022814,2]
[313675923,1707574247009,-500.0,0.00022814,2]
[313675924,1707574247019,-242.28,0.00022814,2]
[313675925,1707574247029,-500.0,0.00022814,2]
[313675926,1707574247039,-500.0,0.00022814,2]
[313675927,1707574247048,-500.0,0.00022814,2]
[313675928,1707574247058,-690.69,0.00022814,2]
[313675929,1707574247067,-500.0,0.00022814,2]
[313675930,1707574247077,-508.62634312,0.00022814,2]
[313675931,1707574247087,-438.15283583,0.00022814,2]
[313675932,1707574247096,-725.42,0.00022814,2]
[313675933,1707574247106,-500.0,0.00022814,2]
[313675934,1707574247115,-500.0,0.00022814,2]
[313675935,1707574247124,-500.0,0.00022814,2]
[313675936,1707574247134,-500.0,0.00022814,2]
[313675937,1707574247143,-500.0,0.00022814,2]
[313675938,1707574247152,-500.0,0.00022814,2]
[313675939,1707574247162,-728.69,0.00022814,2]
[313675940,1707574247172,-500.0,0.00022814,2]
[313675941,1707574247183,-650.93,0.00022814,2]
[313675942,1707574247192,-1766.25,0.00022814,2]
[313675943,1707574247201,-500.0,0.00022814,2]
[313675944,1707574247211,-500.0,0.00022814,2]
[313675945,1707574247220,-500.0,0.00022814,2]
[313675946,1707574247230,-435.33,0.00022814,2]
[313675947,1707574247240,-500.0,0.00022814,2]
[313675948,1707574247249,-252.6,0.00022814,2]
[313675949,1707574247259,-500.0,0.00022814,2]
[313675950,1707574247268,-150.0,0.00022814,2]
[313675951,1707574247277,-466.64,0.00022814,2]
[313675952,1707574247286,-500.0,0.00022814,2]
[313675953,1707574247296,-594.57,0.00022814,2]
[313675954,1707574247305,-500.0,0.00022814,2]
[313675955,1707574247315,-500.0,0.00022814,2]
[313675956,1707574247324,-500.0,0.00022814,2]
[313675957,1707574247333,-346.7,0.00022814,2]
[313675958,1707574247343,-500.0,0.00022814,2]
[313675959,1707574247352,-454.56111366,0.00022814,2]
[313675960,1707574247362,-500.0,0.00022814,2]
[313675961,1707574247371,-500.0,0.00022814,2]
[313675962,1707574247381,-500.0,0.00022814,2]
[313675963,1707574247390,-500.0,0.00022814,2]
[313675964,1707574247402,-500.0,0.00022814,2]
[313675965,1707574247412,-152.59,0.00022814,2]
[313675966,1707574247421,-500.0,0.00022814,2]
[313675967,1707574247430,-500.0,0.00022814,2]
[313675968,1707574247438,-158.42,0.00022814,2]
[313675969,1707574247448,-500.0,0.00022814,2]
[313675970,1707574247457,-476.074768,0.00022814,2]
[313675971,1707574247466,-500.0,0.00022814,2]
[313675972,1707574247476,-568.41,0.00022814,2]
[313675973,1707574247485,-500.0,0.00022814,2]
[313675974,1707574247494,-383.45,0.00022814,2]
[313675975,1707574247503,-408.08,0.00022814,2]
[313675976,1707574247512,-530.39,0.00022814,2]
[313675977,1707574247522,-253.11,0.00022814,2]
[313675978,1707574247531,-163.62,0.00022814,2]
[313675979,1707574247541,-227.58,0.00022814,2]
[313675980,1707574247550,-500.0,0.00022814,2]
[313675981,1707574247560,-207.6,0.00022814,2]
[313675982,1707574247569,-500.0,0.00022814,2]
[313675983,1707574247579,-500.0,0.00022814,2]
[313675984,1707574247589,-500.0,0.00022814,2]
[313675985,1707574247598,-433.46,0.00022814,2]
[313675986,1707574247607,-500.0,0.00022814,2]
[313675987,1707574247616,-241.17,0.00022814,2]
[313675988,1707574247626,-175.17,0.00022814,2]
[313675989,1707574247635,-500.0,0.00022814,2]
[313675990,1707574247644,-500.0,0.00022814,2]
[313675991,1707574247654,-182.73,0.00022814,2]
[313675992,1707574247664,-500.0,0.00022814,2]
[313675993,1707574247673,-183.16,0.00022814,2]
[313675994,1707574247683,-500.0,0.00022814,2]
[313675995,1707574247693,-500.0,0.00022814,2]
[313675996,1707574247702,-300.36,0.00022814,2]
[313675997,1707574247711,-500.0,0.00022814,2]
[313675998,1707574247721,-636.88,0.00022814,2]
[313675999,1707574247731,-3260.3,0.00022814,2]
[313676000,1707574247740,-587.09,0.00022814,2]
[313676001,1707574247749,-1101.01,0.00022814,2]
[313676002,1707574247759,-500.0,0.00022814,2]
[313676003,1707574247768,-1350.38,0.00022814,2]
[313676004,1707574247777,-1027.58,0.00022814,2]
[313676005,1707574247787,-500.0,0.00022814,2]
[313676006,1707574247796,-500.0,0.00022814,2]
[313676007,1707574247805,-500.0,0.00022814,2]
[313676008,1707574247815,-500.0,0.00022814,2]
[313676009,1707574247824,-500.0,0.00022814,2]
[313676010,1707574247834,-500.0,0.00022814,2]
[313676011,1707574247843,-500.0,0.00022814,2]
[313676012,1707574247853,-500.0,0.00022814,2]
[313676013,1707574247862,-500.0,0.00022814,2]
[313676014,1707574247871,-11125.45,0.00022814,2]
[313676015,1707574247881,-500.0,0.00022814,2]
[313676016,1707574247890,-500.0,0.00022814,2]
[313676017,1707574247899,-500.0,0.00022814,2]
[313676018,1707574247909,-500.0,0.00022814,2]
[313676019,1707574247918,-2170.27,0.00022814,2]
[313676020,1707574247927,-500.0,0.00022814,2]
[313676021,1707574247936,-500.0,0.00022814,2]
[313676022,1707574247944,-1482.5,0.00022814,2]
[313676023,1707574247953,-152.82,0.00022814,2]
[313676024,1707574247962,-1321.31,0.00022814,2]
[313676025,1707574247971,-1437.89,0.00022814,2]
[313676026,1707574247980,-500.0,0.00022814,2]
[313676027,1707574247989,-500.0,0.00022814,2]
[313676028,1707574247999,-989.82,0.00022814,2]
[313676029,1707574248009,-500.0,0.00022814,2]
[313676030,1707574248019,-597.95,0.00022814,2]
[313676031,1707574248029,-1909.18,0.00022814,2]
[313676032,1707574248039,-647.12,0.00022814,2]
[313676033,1707574248048,-500.0,0.00022814,2]
[313676034,1707574248058,-589.61,0.00022814,2]
[313676035,1707574248067,-500.0,0.00022814,2]
[313676036,1707574248077,-998.15,0.00022814,5]
[313676037,1707574248086,-2371.12,0.00022814,2]
[313676038,1707574248095,-500.0,0.00022814,2]
[313676039,1707574248105,-1347.24,0.00022814,2]
[313676040,1707574248115,-2054.78,0.00022814,2]
[313676041,1707574248124,-179.88,0.00022814,2]
[313676042,1707574248134,-3967.07,0.00022814,2]
[313676043,1707574248143,-1618.29,0.00022814,2]
[313676044,1707574248153,-898.36,0.00022814,2]
[313676045,1707574248162,-1588.29,0.00022814,2]
[313676046,1707574248172,-1247.09,0.00022814,2]
[313676047,1707574248182,-500.0,0.00022814,2]
[313676048,1707574248191,-918.14,0.00022814,2]
[313676049,1707574248200,-500.0,0.00022814,2]
[313676050,1707574248209,-2818.91,0.00022814,2]
[313676051,1707574248219,-500.0,0.00022814,2]
[313676052,1707574248228,-2329.93,0.00022814,2]
[313676053,1707574248238,-500.0,0.00022814,2]
[313676054,1707574248247,-500.0,0.00022814,2]
[313676055,1707574248256,-500.0,0.00022814,2]
[313676056,1707574248266,-1534.72,0.00022814,2]
[313676057,1707574248275,-854.59,0.00022814,2]
[313676058,1707574248285,-500.0,0.00022814,2]
[313676059,1707574248294,-957.2,0.00022814,2]
[313676060,1707574248303,-500.0,0.00022814,2]
[313676061,1707574248313,-716.28,0.00022814,2]
[313676062,1707574248322,-973.69,0.00022814,2]
[313676063,1707574248332,-5653.82,0.00022814,2]
[313676064,1707574248341,-500.0,0.00022814,2]
[313676065,1707574248350,-500.0,0.00022814,2]
[313676066,1707574248359,-882.22,0.00022814,2]
[313676067,1707574248369,-1623.83,0.00022814,2]
[313676068,1707574248378,-500.0,0.00022814,2]
[313676069,1707574248388,-729.82,0.00022814,2]
[313676070,1707574248397,-817.33,0.00022814,2]
[313676071,1707574248406,-500.0,0.00022814,2]
[313676072,1707574248415,-1270.18,0.00022814,2]
[313676073,1707574248424,-1668.37,0.00022814,2]
[313676074,1707574248434,-1505.82,0.00022814,2]
[313676075,1707574248443,-500.0,0.00022814,2]
[313676076,1707574248452,-500.0,0.00022814,2]
[313676077,1707574248461,-500.0,0.00022814,2]
[313676078,1707574248471,-500.0,0.00022814,2]
[313676079,1707574248480,-290.2,0.00022814,2]
[313676080,1707574248490,-500.0,0.00022814,2]
[313676081,1707574248499,-500.0,0.00022816,2]
[313676082,1707574248508,-3870.49379135,0.00022818,2]
[313676083,1707574248517,-3872.0,0.00022822,2]
[313676084,1707574248526,-500.0,0.00022823,2]
[313676085,1707574248535,-500.0,0.00022831,2]
[313676086,1707574248544,-151.5283607,0.00022834,2]
[313676087,1707574248553,-1426.56387545,0.00022835,2]
[313676088,1707574248562,-261.03906206,0.00022837,2]
[313676089,1707574248571,-500.0,0.00022841,2]
[313676090,1707574248581,-3870.49379135,0.00022845,2]
[313676091,1707574248590,-500.0,0.00022851,2]
[313676092,1707574248599,-500.0,0.00022861,2]
[313676093,1707574248609,-500.0,0.00022861,2]
[313676094,1707574248618,-500.0,0.00022872,2]
[313676095,1707574248627,-3870.49379135,0.00022873,2]
[313676096,1707574248636,-404.6,0.00022877,2]
[313676097,1707574248646,-404.6,0.00022877,2]
[313676098,1707574248655,-1827.12,0.00022877,2]
[313676099,1707574248664,-417.17,0.00022877,2]
[313676100,1707574248674,-404.6,0.00022877,2]
[313676101,1707574248684,-913.89,0.00022877,2]
[313676102,1707574248694,-913.89,0.00022877,2]
[313676103,1707574248703,-500.0,0.00022882,2]
[313676104,1707574248712,-560.1973835,0.00022884,6]
[313676105,1707574248721,-560.19738346,0.00022888,6]
[313676106,1707574248730,-500.0,0.00022892,2]
[313676107,1707574248740,-560.19738346,0.00022892,6]
[313676108,1707574248749,-560.19738346,0.00022896,6]
[313676109,1707574248758,-3870.49379135,0.000229,2]
[313676110,1707574248767,-4000.0,0.000229,2]
[313676111,1707574248777,-4000.0,0.000229,2]
[313676112,1707574248786,-3977.55823,0.000229,2]
[313676113,1707574248795,-225.330599,0.000229,2]
[313676114,1707574248805,-1985.87895,0.000229,2]
[313676115,1707574248814,-151.5283607,0.000229,2]
[313676116,1707574248823,-4605.4107127,0.000229,2]
[313676117,1707574248833,-769.07423358,0.000229,2]
[313676118,1707574248842,-1542.65408365,0.000229,2]
[313676119,1707574248852,-560.19738346,0.000229,6]
[313676120,1707574248864,-500.0,0.00022902,2]
[313676121,1707574248874,-150.0,0.00022905,2]
[313676122,1707574248883,-300.0,0.00022905,2]
[313676123,1707574248892,-8302.18,0.00022953,2]
[313676124,1707574248902,-1140.33,0.00022953,2]
[313676125,1707574248911,-8411.1,0.00022953,2]
[313676126,1707574248921,-500.0,0.00022953,2]
[313676127,1707574248931,-500.0,0.00022953,2]
[313676128,1707574248941,-2145.73,0.00022953,2]
[313676129,1707574248950,-853.49,0.00022953,2]
[313676130,1707574249022,-7722.57,0.00022953,2]
[313676131,1707574249031,-500.0,0.00022953,2]
[313676132,1707574249041,-500.0,0.00022953,2]
[313676133,1707574249050,-500.0,0.00022953,2]
[313676134,1707574249059,-620.92,0.00022953,2]
[313676135,1707574249068,-586.97,0.00022953,2]
[313676136,1707574249077,-500.0,0.00022953,2]
[313676137,1707574249087,-866.64,0.00022953,2]
[313676138,1707574249096,-150.0,0.0002296,2]
[313676139,1707574249106,-1070.75597222,0.00022962,2]
[313676140,1707574249115,-159.90052585,0.00022962,2]
[313676141,1707574249125,-500.0,0.00022963,2]
[313676142,1707574249134,-500.0,0.00022963,2]
[313676143,1707574249143,-500.0,0.00022963,2]
[313676144,1707574249153,-500.0,0.00022963,2]
[313676145,1707574249162,-500.0,0.00022963,2]
[313676146,1707574249171,-500.0,0.00022963,2]
[313676147,1707574249181,-432.8939,0.00022963,2]
[313676148,1707574249190,-10808.6170461,0.00022966,2]
[313676149,1707574249199,-55193.4273333,0.00022966,2]
[313676150,1707574249207,-55193.4273333,0.00022966,2]
[313676151,1707574249217,-41048.6129599,0.00022966,2]
[313676152,1707574249226,-3800.6005142,0.00022966,2]
[313676153,1707574249235,-2731.68720398,0.00022982,2]
[313676154,1707574249244,-2628.4407895,0.00022982,10]
[313676155,1707574249253,-500.0,0.00022983,2]
[313676156,1707574249262,-500.0,0.00022983,2]
[313676157,1707574249271,-150.0,0.00022983,2]
[313676158,1707574249281,-150.0,0.00022983,2]
[313676159,1707574249290,-357.57282611,0.00022983,2]
[313676160,1707574249299,-500.0,0.00022983,2]
[313676161,1707574249308,-623.78149324,0.00022983,2]
[313676162,1707574249317,-402.64980169,0.00022983,2]
[313676163,1707574249326,-574.47772567,0.00022983,2]
[313676164,1707574249335,-609.42500493,0.00022983,2]
[313676165,1707574249344,-9856.541733,0.00022984,2]
[313676166,1707574249353,-8904.4664199,0.00022984,2]
[313676167,1707574249361,-7952.3911067,0.00022984,2]
[313676168,1707574249370,-7000.3157936,0.00022984,2]
[313676169,1707574249379,-50331.7230666,0.00022984,2]
[313676170,1707574249388,-45470.0187999,0.00022984,2]
[313676171,1707574249398,-40608.3145333,0.00022984,2]
[313676172,1707574249407,-35746.6102666,0.00022984,2]
[313676173,1707574249416,-50331.7230666,0.00022984,2]
[313676174,1707574249425,-45470.0187999,0.00022984,2]
[313676175,1707574249435,-40608.3145333,0.00022984,2]
[313676176,1707574249444,-35746.6102666,0.00022984,2]
[313676177,1707574249454,-37650.139373,0.00022984,2]
[313676178,1707574249462,-34251.6657862,0.00022984,2]
[313676179,1707574249472,-30853.1921993,0.00022984,2]
[313676180,1707574249481,-27454.7186125,0.00022984,2]
[313676181,1707574249490,-3216.1230844,0.00022984,2]
[313676182,1707574249499,-2631.6456546,0.00022984,2]
[313676183,1707574249509,-2047.1682247,0.00022984,2]
[313676184,1707574249518,-1462.6907949,0.00022984,2]
[313676185,1707574249526,-1125.16461019,0.00022991,2]
[313676186,1707574249534,-439.37,0.00022999,2]
[313676187,1707574249544,-150.0,0.00022999,2]
[313676188,1707574249553,-150.0,0.00022999,2]
[313676189,1707574249562,-150.0,0.00022999,2]
[313676190,1707574249571,-150.0,0.00022999,2]
[313676191,1707574249579,-150.0,0.00022999,2]
[313676192,1707574249588,-150.0,0.00022999,2]
[313676193,1707574249597,-150.0,0.00022999,2]
[313676194,1707574249607,-150.0,0.00022999,2]
[313676195,1707574249616,-150.0,0.00022999,2]
[313676196,1707574249625,-150.0,0.00022999,2]
[313676197,1707574249634,-282.38110849,0.00022999,2]
[313676198,1707574249642,-150.0,0.00022999,2]
[313676199,1707574249651,-150.0,0.00022999,2]
[313676200,1707574249660,-150.0,0.00022999,2]
[313676201,1707574249670,-150.0,0.00022999,2]
[313676202,1707574249679,-150.0,0.00022999,2]
[313676203,1707574249688,-1943630.44080654,0.00023,2]
[313676204,1707574249697,-4071037.18469931,0.00023,2]
[313676205,1707574249706,-117163.95670557,0.00023,2]
[313676206,1707574249715,-418379.64268268,0.00023,2]
[313676207,1707574249724,-567114.83872915,0.00023,2]
[313676208,1707574249733,-101695.65095858,0.00023,2]
[313676209,1707574249742,-1478517.48137948,0.00023,2]
[313676210,1707574249753,-151.0,0.00023,2]
[313676211,1707574249762,-311.23,0.00023,2]
[313676212,1707574249771,-1012.35889988,0.00023,2]
[313676213,1707574249780,-3357.03576588,0.00023079,2]
[313676214,1707574249789,-181.09917357,0.00023079,2]
[313676215,1707574249798,-107516.31060544,0.00023081,2]
[313676216,1707574249807,-710.68,0.00023081,2]
[313676217,1707574249816,-500.0,0.00023087,2]
[313676218,1707574249826,-160.56335518,0.00023087,2]
[313676219,1707574249834,-1723.79,0.00023087,2]
[313676220,1707574249844,-1523.13,0.00023087,2]
[313676221,1707574249853,-11523.32,0.00023087,2]
[313676222,1707574249865,-829.36,0.00023087,2]
[313676223,1707574249875,-500.0,0.00023087,2]
[313676224,1707574249884,-500.0,0.00023087,2]
[313676225,1707574249894,-6068.79,0.00023087,2]
[313676226,1707574249903,-500.0,0.00023087,2]
[313676227,1707574249912,-500.0,0.00023087,2]
[313676228,1707574249922,-500.0,0.00023087,2]
[313676229,1707574249931,-583.83,0.00023087,2]
[313676230,1707574249941,-1103.65,0.00023087,2]
[313676231,1707574249951,-2088.97,0.00023087,2]
[313676232,1707574249961,-4410.53,0.00023087,2]
[313676233,1707574249971,-500.0,0.00023087,2]
[313676234,1707574249980,-2300.86,0.00023087,2]
[313676235,1707574249989,-706.48,0.00023087,2]
[313676236,1707574249998,-500.0,0.00023087,2]
[313676237,1707574250007,-1111.1,0.00023087,2]
[313676238,1707574250016,-500.0,0.00023087,2]
[313676239,1707574250027,-500.0,0.00023087,2]
[313676240,1707574250037,-4192.44,0.00023087,2]
[313676241,1707574250047,-500.0,0.00023087,2]
[313676242,1707574250057,-1461.55,0.00023087,2]
[313676243,1707574250066,-1156.45,0.00023087,2]
[313676244,1707574250076,-500.0,0.00023087,2]
[313676245,1707574250085,-500.0,0.00023087,2]
[313676246,1707574250095,-526.96,0.00023087,2]
[313676247,1707574250104,-4621.17,0.00023087,2]
[313676248,1707574250114,-556.98,0.00023087,2]
[313676249,1707574250124,-500.0,0.00023087,2]
[313676250,1707574250134,-8652.9,0.00023087,2]
[313676251,1707574250143,-500.0,0.00023087,2]
[313676252,1707574250153,-500.0,0.00023087,2]
[313676253,1707574250163,-500.0,0.00023087,2]
[313676254,1707574250172,-500.0,0.00023087,2]
[313676255,1707574250182,-500.0,0.00023087,2]
[313676256,1707574250192,-1507.4,0.00023087,2]
[313676257,1707574250201,-1344.82,0.00023087,2]
[313676258,1707574250211,-244.77810139,0.00023087,2]
[313676259,1707574250221,-2326.79,0.00023087,2]
[313676260,1707574250230,-500.0,0.00023087,2]
[313676261,1707574250240,-500.0,0.00023087,2]
[313676262,1707574250249,-1393.4,0.00023087,2]
[313676263,1707574250258,-1818.92,0.00023087,2]
[313676264,1707574250268,-674.57,0.00023087,2]
[313676265,1707574250277,-2027.14,0.00023087,2]
[313676266,1707574250287,-500.0,0.00023087,2]
[313676267,1707574250295,-930.03,0.00023087,5]
[313676268,1707574250304,-2829.1,0.00023087,2]
[313676269,1707574250314,-1455.5,0.00023087,2]
[313676270,1707574250323,-500.0,0.00023087,2]
[313676271,1707574250333,-500.0,0.00023087,2]
[313676272,1707574250342,-500.0,0.00023087,2]
[313676273,1707574250351,-500.0,0.00023087,2]
[313676274,1707574250361,-1720.68,0.00023087,2]
[313676275,1707574250370,-555.72,0.00023087,2]
[313676276,1707574250380,-224.29,0.00023087,2]
[313676277,1707574250389,-3972.0,0.00023087,2]
[313676278,1707574250399,-2184.99,0.00023087,2]
[313676279,1707574250408,-500.0,0.00023087,2]
[313676280,1707574250417,-1966.35,0.00023087,2]
[313676281,1707574250426,-1817.93,0.00023087,2]
[313676282,1707574250437,-835.04,0.00023087,2]
[313676283,1707574250446,-587.81,0.00023087,2]
[313676284,1707574250455,-3333.4,0.00023087,2]
[313676285,1707574250464,-500.0,0.00023088,2]
[313676286,1707574250474,-354.90528205,0.00023088,2]
[313676287,1707574250483,-500.0,0.00023088,2]
[313676288,1707574250493,-500.0,0.00023088,2]
[313676289,1707574250502,-500.0,0.00023088,2]
[313676290,1707574250511,-500.0,0.00023088,2]
[313676291,1707574250521,-247.70246589,0.00023088,2]
[313676292,1707574250530,-500.0,0.00023088,2]
[313676293,1707574250539,-535.11731545,0.00023088,2]
[313676294,1707574250548,-500.0,0.00023088,2]
[313676295,1707574250557,-613.71,0.00023088,2]
[313676296,1707574250566,-500.0,0.00023088,2]
[313676297,1707574250575,-281.11414112,0.00023088,2]
[313676298,1707574250586,-500.0,0.00023088,2]
[313676299,1707574250596,-500.0,0.00023088,2]
[313676300,1707574250605,-740.88,0.00023088,2]
[313676301,1707574250614,-500.0,0.00023088,2]
[313676302,1707574250623,-500.0,0.00023088,2]
[313676303,1707574250632,-382.01,0.00023088,2]
[313676304,1707574250641,-500.0,0.00023088,2]
[313676305,1707574250650,-500.0,0.00023088,2]
[313676306,1707574250660,-500.0,0.00023088,2]
[313676307,1707574250669,-500.0,0.00023088,2]
[313676308,1707574250678,-500.0,0.00023088,2]
[313676309,1707574250688,-174.17,0.00023088,2]
[313676310,1707574250697,-500.0,0.00023088,2]
[313676311,1707574250706,-500.0,0.00023088,2]